bitfinex/quotes_SOLUSD_20250815
["timestamp","ask_amount","ask_price","bid_price","bid_amount"]
[1755260105097,89.77075002,194.88,194.87,0.03]
[1755260106300,83.18016509,194.88,194.87,0.03]
[1755260106503,46.86016509,194.88,194.87,0.03]
[1755260106796,79.73582762,194.88,194.87,0.03]
[1755260107001,66.32,194.88,194.87,0.03]
[1755260107597,66.32,194.88,194.87,0.49]
[1755260107790,66.32,194.88,194.87,0.03]
[1755260107975,36.32,194.88,194.87,0.03]
[1755260108789,36.32,194.88,194.87,0.49]
[1755260109211,13.41484604,194.92,194.87,0.49]
[1755260109413,36.32,194.91,194.88,0.46]
[1755260109906,44.60446474,194.91,194.87,0.03]
[1755260110105,8.28446474,194.89,194.87,0.03]
[1755260110448,44.60446474,194.88,194.87,0.03]
[1755260111082,49.73582762,194.88,194.87,0.03]
[1755260111308,36.32,194.88,194.87,0.03]
[1755260111613,36.38,194.88,194.87,0.03]
[1755260112174,0.06,194.88,194.87,8.77446474]
[1755260113289,0.06,194.88,194.87,13.90609095]
[1755260114890,0.06,194.88,194.87,29.31638995]
[1755260115511,0.06,194.88,194.87,13.90609095]
[1755260116209,0.06,194.88,194.87,26.03]
[1755260117288,0.06,194.88,194.87,34.77446474]
[1755260117696,0.06,194.88,194.87,26.03]
[1755260119603,0.06,194.88,194.87,34.77446474]
[1755260119801,0.06,194.88,194.87,39.90609095]
[1755260120504,0.06,194.88,194.87,34.77446474]
[1755260120706,0.06,194.88,194.87,26.03]
[1755260121018,0.06,194.88,194.87,34.31446474]
[1755260122031,0.06,194.88,194.87,26.03]
[1755260122326,0.78,194.88,194.87,26.03]
[1755260123635,0.06,194.88,194.87,26.03]
[1755260126846,0.06,194.88,194.87,34.31446474]
[1755260127011,0.06,194.88,194.87,34.77446474]
[1755260127556,0.06,194.88,194.87,26.03]
[1755260128145,37.08,194.88,194.87,0.03]
[1755260128339,48.80577431,194.88,194.87,0.03]
[1755260129036,53.93713719,194.88,194.87,0.03]
[1755260129453,44.93267245,194.88,194.87,0.03]
[1755260129815,39.80130957,194.88,194.87,0.03]
[1755260130047,36.36,194.88,194.87,0.03]
[1755260131219,42.21136288,194.88,194.87,0.03]
[1755260132130,37.08,194.88,194.87,0.03]
[1755260133185,0.06,194.88,194.87,8.31446474]
[1755260133477,0.06,194.88,194.87,8.77446474]
[1755260134882,0.06,194.88,194.87,8.31446474]
[1755260135781,0.06,194.88,194.87,26.03]
[1755260136146,0.78,194.88,194.87,0.03]
[1755260136476,4.22375715,194.88,194.87,0.03]
[1755260137091,12.50822189,194.88,194.87,0.03]
[1755260137379,17.63958477,194.88,194.87,0.03]
[1755260139078,21.46930657,194.88,194.87,0.03]
[1755260139982,13.18484183,194.88,194.87,0.03]
[1755260140181,7.33347895,194.88,194.87,0.03]
[1755260140380,3.50375715,194.88,194.87,0.03]
[1755260140681,44.93512003,194.88,194.87,0.03]
[1755260140861,39.80375715,194.88,194.87,0.03]
[1755260141446,45.65512003,194.88,194.87,0.03]
[1755260142765,36.36,194.88,194.87,0.03]
[1755260143148,39.80901751,194.88,194.87,0.03]
[1755260144454,36.36,194.88,194.87,0.03]
[1755260146380,0.06,194.88,194.87,0.03]
[1755260148575,0.06,194.88,194.87,8.31446474]
[1755260149256,0.06,194.88,194.87,13.90609095]
[1755260149456,0.06,194.88,194.87,0.03]
[1755260149659,12.51725841,194.88,194.87,0.03]
[1755260149866,16.3545037,194.88,194.87,0.03]
[1755260150889,8.07003896,194.88,194.87,0.03]
[1755260151867,3.51279367,194.88,194.87,0.03]
[1755260152078,39.81279367,194.88,194.87,0.03]
[1755260152274,40.53279367,194.88,194.87,0.03]
[1755260153166,45.66415655,194.88,194.87,0.03]
[1755260153365,49.50449212,194.88,194.87,0.03]
[1755260155294,57.78895686,194.88,194.87,0.03]
[1755260156459,49.50449212,194.88,194.87,0.03]
[1755260156666,13.20449212,194.88,194.87,0.03]
[1755260156890,49.50449212,194.88,194.87,0.03]
[1755260160396,3.51279367,194.88,194.87,8.31446474]
[1755260160697,0.06,194.88,194.87,8.77446474]
[1755260161595,0.06,194.88,194.87,26.03]
[1755260161596,3.51615759,194.88,194.87,26.03]
[1755260162296,3.51615759,194.88,194.87,34.31446474]
[1755260162589,3.51615759,194.88,194.87,0.03]
[1755260162792,13.19868619,194.88,194.87,0.03]
[1755260163091,21.48315093,194.88,194.87,0.03]
[1755260163299,7.35732331,194.88,194.87,0.03]
[1755260163805,13.19868619,194.88,194.87,0.03]
[1755260164093,21.48315093,194.88,194.87,0.03]
[1755260164401,13.19868619,194.88,194.87,0.03]
[1755260164609,7.35732331,194.88,194.87,0.03]
[1755260164767,39.81615759,194.88,194.87,0.03]
[1755260164972,44.36745715,194.88,194.87,0.03]
[1755260165877,49.49882003,194.88,194.87,0.03]
[1755260167307,57.78328477,194.88,194.87,0.03]
[1755260169177,72.88950034,194.88,194.87,0.03]
[1755260169377,77.19214955,194.88,194.87,0.03]
[1755260169588,72.88950034,194.88,194.87,0.03]
[1755260170075,72.88976773,194.88,194.87,0.03]
[1755260170269,57.78355216,194.88,194.87,0.03]
[1755260170999,49.49908742,194.88,194.87,0.03]
[1755260171302,48.78908742,194.88,194.87,0.03]
[1755260171805,57.78355216,194.88,194.87,0.03]
[1755260173815,72.88976773,194.88,194.87,0.03]
[1755260173978,72.88976773,194.88,194.86,0.03]
[1755260174186,31.39840485,194.87,194.86,0.03]
[1755260174507,31.39840485,194.87,194.85,0.03]
[1755260174705,52.59218928,194.86,194.85,0.03]
[1755260174882,57.72407884,194.86,194.85,0.03]
[1755260175805,57.7224091,194.86,194.85,0.03]
[1755260178331,189.6224091,194.86,194.85,0.03]
[1755260178625,209.04883193,194.86,194.85,0.03]
[1755260180005,204.72862467,194.86,194.85,0.03]
[1755260180522,180.62794436,194.86,194.85,0.03]
[1755260181019,139.1960548,194.86,194.85,0.03]
[1755260181220,135.35615759,194.86,194.85,0.03]
[1755260181390,171.65615759,194.86,194.85,0.03]
[1755260182998,0.06,194.88,194.85,8.77446474]
[1755260183202,3.4532491,194.87,194.86,8.28446474]
[1755260183718,3.4532491,194.87,194.86,8.74446474]
[1755260184821,0.06,194.88,194.86,8.74446474]
[1755260185130,0.06,194.88,194.87,8.74446474]
[1755260185323,3.51314321,194.88,194.87,8.74446474]
[1755260185632,3.51314321,194.88,194.87,8.28446474]
[1755260186006,3.51314321,194.88,194.85,5.62209401]
[1755260186210,0.06,194.88,194.86,8.28446474]
[1755260186843,3.45314757,194.87,194.85,8.31446474]
[1755260187004,49.43255808,194.86,194.85,0.03]
[1755260187201,57.71702282,194.86,194.85,0.03]
[1755260187526,49.43255808,194.86,194.85,0.03]
[1755260187728,3.45314757,194.86,194.85,8.31446474]
[1755260187915,36.3,194.86,194.85,8.77446474]
[1755260188130,3.45314757,194.86,194.85,8.31446474]
[1755260188327,36.36,194.88,194.85,8.31446474]
[1755260188522,36.36,194.88,194.86,8.28446474]
[1755260189748,36.36,194.88,194.87,8.28446474]
[1755260189945,39.81287353,194.88,194.86,8.28446474]
[1755260190154,36.36,194.88,194.86,8.28446474]
[1755260190653,36.36,194.88,194.87,8.28446474]
[1755260191236,36.36,194.88,194.86,8.28446474]
[1755260196961,36.36,194.88,194.87,8.28446474]
[1755260197434,36.36,194.88,194.87,34.28446474]
[1755260198943,0.06,194.88,194.87,34.28446474]
[1755260201067,0.06,194.88,194.87,39.41609095]
[1755260201268,0.06,194.88,194.87,39.87609095]
[1755260201558,0.06,194.88,194.87,39.41609095]
[1755260204867,0.06,194.88,194.87,34.28446474]
[1755260205238,0.78,194.88,194.87,34.28446474]
[1755260207460,0.06,194.88,194.87,34.28446474]
[1755260208165,0.78,194.88,194.87,34.28446474]
[1755260209142,0.78,194.88,194.86,0.03]
[1755260209348,3.45006703,194.87,194.86,0.03]
[1755260209563,3.45006703,194.87,194.86,26.03]
[1755260209767,40.45006703,194.87,194.86,0.03]
[1755260210242,40.45006703,194.87,194.86,26.03]
[1755260210445,45.58169324,194.87,194.86,26.03]
[1755260211774,45.58169324,194.87,194.86,0.03]
[1755260212072,45.58169324,194.87,194.86,26.03]
[1755260212476,45.58169324,194.87,194.86,0.03]
[1755260213267,40.45006703,194.87,194.86,26.03]
[1755260214650,45.58169324,194.87,194.86,0.03]
[1755260218073,204.70688936,194.87,194.86,0.03]
[1755260218875,209.0233552,194.87,194.86,0.03]
[1755260219550,239.0233552,194.87,194.86,0.03]
[1755260221382,209.0233552,194.87,194.86,0.03]
[1755260221769,77.1233552,194.87,194.86,0.03]
[1755260221956,73.28883939,194.87,194.86,0.03]
[1755260222158,77.12367967,194.87,194.86,0.03]
[1755260222657,72.80721383,194.87,194.86,0.03]
[1755260224680,64.52274909,194.87,194.86,0.03]
[1755260224883,72.80721383,194.87,194.86,0.03]
[1755260226682,64.52274909,194.87,194.86,0.03]
[1755260226986,72.80721383,194.87,194.86,0.03]
[1755260228164,72.08721383,194.87,194.86,0.03]
[1755260228990,64.52274909,194.87,194.86,0.03]
[1755260229189,72.80721383,194.87,194.86,0.03]
[1755260229873,43.56490731,194.87,194.86,0.03]
[1755260230073,49.41653352,194.87,194.86,0.03]
[1755260230277,57.70099826,194.87,194.86,0.03]
[1755260230464,56.98099826,194.87,194.86,0.03]
[1755260230984,57.70099826,194.87,194.86,0.03]
[1755260231191,12.41653352,194.87,194.86,0.03]
[1755260231500,48.69653352,194.87,194.86,0.03]
[1755260232384,45.58169324,194.87,194.86,0.03]
[1755260232562,44.86169324,194.87,194.86,0.03]
[1755260233363,39.73006703,194.87,194.86,0.03]
[1755260233587,39.73006703,194.87,194.86,8.77446474]
[1755260233958,39.73006703,194.87,194.86,0.03]
[1755260234162,48.73453177,194.87,194.86,0.03]
[1755260234362,45.58169324,194.87,194.86,0.03]
[1755260234558,44.86169324,194.87,194.86,0.03]
[1755260234778,45.58169324,194.87,194.86,0.03]
[1755260235493,44.86169324,194.87,194.86,0.03]
[1755260236592,45.58169324,194.87,194.86,0.03]
[1755260239671,44.86169324,194.87,194.86,0.03]
[1755260240072,39.73006703,194.87,194.86,0.03]
[1755260240380,3.45006703,194.87,194.86,8.77446474]
[1755260240581,36.26,194.87,194.86,8.77446474]
[1755260240790,3.45006703,194.87,194.86,8.77446474]
[1755260241882,3.45006703,194.87,194.86,0.03]
[1755260242085,36.32,194.88,194.86,8.31446474]
[1755260242264,0.06,194.87,194.86,8.31446474]
[1755260243294,0.06,194.87,194.86,0.03]
[1755260243497,4.23043392,194.87,194.86,0.03]
[1755260243992,3.51043392,194.87,194.86,0.03]
[1755260244786,8.64206013,194.87,194.86,0.03]
[1755260245998,9.36206013,194.87,194.86,0.03]
[1755260251084,13.20054962,194.87,194.86,0.03]
[1755260252104,13.20130614,194.87,194.86,0.03]
[1755260254681,21.48577088,194.87,194.86,0.03]
[1755260257518,36.59198645,194.87,194.86,0.03]
[1755260257704,15.10621557,194.86,194.85,0.03]
[1755260257908,67.65036024,194.86,194.84,0.03]
[1755260258082,31.39036024,194.85,194.84,0.03]
[1755260259389,36.52251317,194.85,194.84,0.03]
[1755260260029,16.74278081,194.85,194.84,0.03]
[1755260260320,39.71043392,194.85,194.84,0.03]
[1755260262390,3.45043392,194.85,194.84,0.03]
[1755260262602,39.71043392,194.85,194.84,0.03]
[1755260262924,57.67729823,194.85,194.84,0.03]
[1755260263097,72.7835138,194.85,194.83,0.03]
[1755260263291,15.5751453,194.84,194.83,0.03]
[1755260263494,16.2851453,194.84,194.83,0.03]
[1755260264582,21.41756164,194.84,194.83,0.03]
[1755260264790,51.41756164,194.84,194.83,0.03]
[1755260266124,43.1330969,194.84,194.83,0.03]
[1755260266327,78.6830969,194.84,194.83,0.03]
[1755260267313,48.6830969,194.84,194.83,0.03]
[1755260267688,39.71043392,194.84,194.83,0.03]
[1755260268295,44.84285026,194.84,194.83,0.03]
[1755260269014,39.71043392,194.84,194.83,0.03]
[1755260269813,45.55285026,194.84,194.83,0.03]
[1755260271322,44.84285026,194.84,194.83,0.03]
[1755260271506,48.68080039,194.84,194.83,0.03]
[1755260271994,43.54838405,194.84,194.83,0.03]
[1755260272195,48.68092931,194.84,194.83,0.03]
[1755260272522,45.55285026,194.84,194.83,0.03]
[1755260272818,44.84285026,194.84,194.83,0.03]
[1755260273317,68.94353057,194.84,194.83,0.03]
[1755260273619,15.10621557,194.83,194.82,0.03]
[1755260273808,35.70778248,194.83,194.82,0.03]
[1755260274306,31.38905962,194.83,194.82,0.03]
[1755260275318,36.52173939,194.83,194.82,0.03]
[1755260276604,40.84046225,194.83,194.82,0.03]
[1755260277906,172.74046225,194.83,194.82,0.03]
[1755260278725,36.52173939,194.83,194.82,0.03]
[1755260279229,38.57845339,194.83,194.82,0.03]
[1755260279529,36.52173939,194.83,194.82,0.03]
[1755260280314,36.52173939,194.83,194.81,0.03]
[1755260280513,15.10621557,194.81,194.8,0.03]
[1755260280710,34.99292192,194.81,194.8,0.03]
[1755260280903,35.65292192,194.81,194.8,0.03]
[1755260281221,35.64932754,194.81,194.8,0.03]
[1755260281528,31.33546524,194.81,194.8,0.03]
[1755260281908,36.46867195,194.81,194.8,0.03]
[1755260282109,58.18420721,194.81,194.8,0.03]
[1755260282314,66.46867195,194.81,194.8,0.03]
[1755260282726,65.80867195,194.81,194.8,0.03]
[1755260283234,66.46867195,194.81,194.8,0.03]
[1755260283422,70.78253425,194.81,194.8,0.03]
[1755260283728,72.83945925,194.81,194.8,0.03]
[1755260283926,72.83694749,194.81,194.8,0.03]
[1755260284331,68.52308519,194.81,194.8,0.03]
[1755260286721,72.83694749,194.81,194.8,0.03]
[1755260287228,68.52308519,194.81,194.8,0.03]
[1755260287443,72.83694749,194.81,194.8,0.03]
[1755260289432,68.52308519,194.81,194.8,0.03]
[1755260289730,65.80616019,194.81,194.8,0.03]
[1755260289932,102.04616019,194.81,194.8,0.03]
[1755260290134,102.70616019,194.81,194.8,0.03]
[1755260293026,107.02002249,194.81,194.8,0.03]
[1755260293331,107.02002249,194.81,194.8,1e-08]
[1755260293511,109.07715949,194.81,194.8,1e-08]
[1755260295137,109.07715949,194.81,194.79,1e-08]
[1755260295341,61.33295348,194.8,194.79,1e-08]
[1755260295841,63.39019648,194.8,194.79,1e-08]
[1755260296523,63.39019648,194.8,194.77,0.03]
[1755260296524,20.2402129,194.78,194.77,0.03]
[1755260296727,102.04695081,194.78,194.77,0.03]
[1755260297235,102.70695081,194.78,194.77,0.03]
[1755260297923,147.00621557,194.77,194.71,0.46]
[1755260298125,8.28446474,194.75,194.71,0.46]
[1755260298324,11.73489866,194.75,194.71,0.46]
[1755260298527,12.39489866,194.75,194.71,0.46]
[1755260298841,17.52968684,194.75,194.71,0.46]
[1755260299140,31.97590241,194.75,194.7,0.49]
[1755260299328,32.63590241,194.75,194.7,0.49]
[1755260299927,36.46675206,194.75,194.7,0.49]
[1755260300524,36.46675206,194.75,194.7,0.03]
[1755260300832,36.46675206,194.75,194.74,1e-08]
[1755260301037,40.78061436,194.75,194.74,1e-08]
[1755260301220,41.10621557,194.71,194.7,1e-08]
[1755260301419,92.91196388,194.71,194.7,1e-08]
[1755260301629,93.57196388,194.71,194.7,1e-08]
[1755260301827,97.88112648,194.71,194.7,1e-08]
[1755260302426,99.93942748,194.71,194.7,1e-08]
[1755260303040,105.07527052,194.71,194.7,1e-08]
[1755260303241,135.07527052,194.71,194.7,1e-08]
[1755260304646,15.10621557,194.7,194.68,1e-08]
[1755260304828,96.91196388,194.69,194.68,1e-08]
[1755260305027,102.70833452,194.69,194.68,1e-08]
[1755260305548,104.76674152,194.69,194.68,1e-08]
[1755260306224,104.75679605,194.69,194.68,1e-08]
[1755260306646,67.85679605,194.69,194.68,1e-08]
[1755260306847,64.6859464,194.69,194.68,1e-08]
[1755260307144,100.9459464,194.69,194.68,1e-08]
[1755260307531,100.2859464,194.69,194.68,1e-08]
[1755260307924,100.9459464,194.69,194.68,1e-08]
[1755260310347,104.76445044,194.69,194.68,1e-08]
[1755260311854,104.76366728,194.69,194.68,1e-08]
[1755260312428,100.9459464,194.69,194.68,1e-08]
[1755260312629,104.76319847,194.69,194.68,1e-08]
[1755260313044,74.76319847,194.69,194.68,1e-08]
[1755260313533,23.39068031,194.64,194.63,0.2]
[1755260313735,59.65068031,194.64,194.63,0.2]
[1755260314253,65.14515635,194.64,194.63,0.2]
[1755260314466,70.28284644,194.64,194.63,0.2]
[1755260314668,74.78109992,194.64,194.63,1e-08]
[1755260315377,79.08171048,194.64,194.63,1e-08]
[1755260316353,109.08171048,194.64,194.63,1e-08]
[1755260316554,20.24416963,194.63,194.62,1e-08]
[1755260316743,40.75630707,194.63,194.62,1e-08]
[1755260317261,42.81535007,194.63,194.62,1e-08]
[1755260317449,72.81535007,194.63,194.62,1e-08]
[1755260317649,77.85564793,194.63,194.62,1e-08]
[1755260317848,15.10621557,194.56,194.54,0.46]
[1755260318065,36.26,194.55,194.54,0.46]
[1755260318368,36.26,194.55,194.52,26.0]
[1755260318543,5.14033103,194.54,194.52,26.0]
[1755260318752,36.26,194.53,194.52,26.0]
[1755260319338,36.26,194.53,194.52,26.46]
[1755260320142,36.26,194.53,194.52,0.46]
[1755260320347,41.40059528,194.53,194.52,0.46]
[1755260320753,49.68506002,194.53,194.49,26.0]
[1755260321076,8.28446474,194.52,194.5,0.46]
[1755260321269,36.26,194.51,194.49,26.0]
[1755260321581,36.26,194.51,194.48,0.2]
[1755260321782,36.26,194.51,194.49,0.46]
[1755260322067,41.40114581,194.51,194.48,0.2]
[1755260322379,36.26,194.51,194.49,0.46]
[1755260322699,41.40112384,194.51,194.5,0.46]
[1755260322856,64.79180415,194.51,194.48,0.2]
[1755260323173,64.79180415,194.51,194.49,0.46]
[1755260323874,59.65068031,194.51,194.48,0.2]
[1755260324077,36.26,194.51,194.5,0.46]
[1755260324877,36.26,194.51,194.48,0.2]
[1755260325079,41.4012064,194.51,194.48,0.66]
[1755260325452,41.4012064,194.51,194.49,0.03]
[1755260326262,36.26,194.51,194.49,0.49]
[1755260329564,36.26,194.51,194.49,0.03]
[1755260329764,5.14092983,194.52,194.49,0.03]
[1755260329963,36.26,194.51,194.49,0.03]
[1755260330177,36.26,194.51,194.5,0.46]
[1755260330478,36.26,194.51,194.5,8.74446474]
[1755260331173,36.26,194.51,194.49,8.31446474]
[1755260331361,36.26,194.51,194.49,0.03]
[1755260331564,36.94,194.51,194.49,0.03]
[1755260331777,45.22446474,194.51,194.49,0.03]
[1755260332756,5.14138817,194.5,194.49,0.03]
[1755260333167,5.82138817,194.5,194.49,0.03]
[1755260333374,14.10585291,194.5,194.49,0.03]
[1755260333980,161.11206848,194.5,194.49,0.03]
[1755260334179,32.63291432,194.5,194.49,0.03]
[1755260334691,36.43440703,194.5,194.49,0.03]
[1755260335184,36.43440703,194.5,194.49,1e-08]
[1755260335385,66.43440703,194.5,194.49,1e-08]
[1755260335560,70.72797021,194.5,194.49,1e-08]
[1755260335763,70.72816185,194.5,194.49,1e-08]
[1755260337478,66.43459867,194.5,194.49,1e-08]
[1755260337684,102.69459867,194.5,194.49,1e-08]
[1755260338086,72.69459867,194.5,194.49,1e-08]
[1755260338691,76.98849986,194.5,194.49,1e-08]
[1755260339687,72.69493668,194.5,194.49,1e-08]
[1755260339883,36.43493668,194.5,194.49,1e-08]
[1755260340084,72.01493668,194.5,194.49,1e-08]
[1755260340393,22.32908377,194.5,194.49,1e-08]
[1755260340567,3.42084584,194.5,194.49,1e-08]
[1755260340902,39.68084584,194.5,194.49,1e-08]
[1755260342070,68.89291432,194.5,194.49,1e-08]
[1755260342472,54.78706141,194.5,194.49,1e-08]
[1755260342673,39.68084584,194.5,194.49,1e-08]
[1755260345282,72.70572182,194.5,194.49,1e-08]
[1755260345488,76.999285,194.5,194.49,1e-08]
[1755260345693,72.70572182,194.5,194.49,1e-08]
[1755260346203,76.99605238,194.5,194.49,1e-08]
[1755260346399,72.70572182,194.5,194.49,1e-08]
[1755260347097,102.70572182,194.5,194.49,1e-08]
[1755260347470,15.10621557,194.49,194.47,0.03]
[1755260347681,51.77811808,194.48,194.47,0.03]
[1755260347868,52.47080729,194.48,194.47,0.03]
[1755260348372,67.57702286,194.48,194.47,0.03]
[1755260349697,204.61893976,194.48,194.47,0.03]
[1755260350697,131.9,194.47,194.43,0.03]
[1755260350877,23.39068031,194.44,194.43,0.03]
[1755260351078,23.39068031,194.44,194.35,0.46]
[1755260351079,15.10621557,194.43,194.35,0.46]
[1755260351279,8.28446474,194.39,194.35,0.46]
[1755260351497,39.69353505,194.38,194.35,0.46]
[1755260351701,3.43353505,194.37,194.35,0.46]
[1755260351875,36.26,194.36,194.35,0.46]
[1755260352501,36.26,194.36,194.33,8.74446474]
[1755260352795,36.26,194.36,194.34,0.46]
[1755260353204,36.26,194.36,194.35,0.46]
[1755260353384,36.26,194.36,194.34,8.28446474]
[1755260353702,36.26,194.36,194.34,8.74446474]
[1755260354513,36.26,194.36,194.34,0.46]
[1755260354878,41.40510332,194.36,194.34,0.46]
[1755260355198,3.43712977,194.35,194.34,0.46]
[1755260355503,3.43712977,194.35,194.3,34.28446474]
[1755260355504,3.43712977,194.35,194.3,8.74446474]
[1755260355680,39.69759143,194.34,194.3,0.46]
[1755260355877,3.43759143,194.33,194.3,0.46]
[1755260356094,36.26,194.32,194.3,0.46]
[1755260356990,36.26,194.32,194.31,0.46]
[1755260358317,36.28,194.33,194.31,8.74446474]
[1755260358623,36.28,194.35,194.32,8.74446474]
[1755260358797,36.28,194.35,194.34,8.28446474]
[1755260359099,15.10621557,194.42,194.34,34.74446474]
[1755260359427,39.71766004,194.41,194.37,26.0]
[1755260359729,36.28,194.41,194.38,0.46]
[1755260359895,36.28,194.4,194.38,0.46]
[1755260360407,15.10621557,194.42,194.39,8.28446474]
[1755260360605,39.72083163,194.41,194.39,8.74446474]
[1755260360806,36.28,194.41,194.39,13.42861746]
[1755260361193,4.97445978,194.46,194.4,8.74446474]
[1755260361529,15.10621557,194.44,194.43,8.28446474]
[1755260361732,18.54815348,194.44,194.43,8.28446474]
[1755260363321,19.22815348,194.44,194.41,8.28446474]
[1755260363507,15.10621557,194.42,194.37,8.28446474]
[1755260363709,40.40193791,194.41,194.37,8.28446474]
[1755260364015,3.44193791,194.4,194.37,8.28446474]
[1755260364192,36.28,194.39,194.37,8.28446474]
[1755260364394,36.28,194.39,194.38,8.28446474]
[1755260365312,36.28,194.39,194.37,8.28446474]
[1755260367017,36.28,194.39,194.38,8.28446474]
[1755260368043,39.72648277,194.39,194.38,8.28446474]
[1755260368197,36.28,194.39,194.38,8.28446474]
[1755260368701,36.28,194.39,194.37,8.28446474]
[1755260369543,0.68,194.38,194.31,5.14631458]
[1755260369824,39.72740227,194.37,194.32,8.28446474]
[1755260370018,0.68,194.36,194.33,26.0]
[1755260370327,36.28,194.35,194.33,34.28446474]
[1755260371205,36.28,194.35,194.33,26.0]
[1755260371403,0.67,194.34,194.3,8.28446474]
[1755260371625,8.28446474,194.31,194.28,0.03]
[1755260371816,39.70787185,194.3,194.28,0.03]
[1755260372026,45.21446474,194.3,194.28,0.03]
[1755260372220,4.11830536,194.29,194.28,0.03]
[1755260372525,0.67,194.29,194.28,0.03]
[1755260373646,5.81694528,194.29,194.28,0.03]
[1755260374013,17.54620969,194.29,194.28,0.03]
[1755260374347,5.81694528,194.29,194.28,0.03]
[1755260374656,14.10141002,194.29,194.28,0.03]
[1755260375329,29.20762559,194.29,194.28,0.03]
[1755260376013,32.64940436,194.29,194.28,0.03]
[1755260377635,32.64940436,194.29,194.28,1e-08]
[1755260377832,36.47192173,194.29,194.28,1e-08]
[1755260378041,66.47192173,194.29,194.28,1e-08]
[1755260378340,92.47192173,194.29,194.28,1e-08]
[1755260379240,62.47192173,194.29,194.28,1e-08]
[1755260380816,94.92940436,194.29,194.28,1e-08]
[1755260381014,68.92940436,194.29,194.28,1e-08]
[1755260381819,32.64940436,194.29,194.28,1e-08]
[1755260382144,68.92940436,194.29,194.28,1e-08]
[1755260385542,98.92940436,194.29,194.28,1e-08]
[1755260387235,102.74226321,194.29,194.28,1e-08]
[1755260388141,102.74069776,194.29,194.28,1e-08]
[1755260388342,104.80324376,194.29,194.28,1e-08]
[1755260388547,102.74069776,194.29,194.28,1e-08]
[1755260390152,92.46069776,194.29,194.28,1e-08]
[1755260390358,133.05515754,194.29,194.28,1e-08]
[1755260390651,41.10621557,194.27,194.26,1e-08]
[1755260390826,92.94375248,194.27,194.26,1e-08]
[1755260391031,123.61375248,194.27,194.26,1e-08]
[1755260391853,127.90186557,194.27,194.26,1e-08]
[1755260392152,133.04934073,194.27,194.26,1e-08]
[1755260392456,133.04886264,194.27,194.26,1e-08]
[1755260392856,128.76122764,194.27,194.26,1e-08]
[1755260393653,133.91210264,194.27,194.26,1e-08]
[1755260393854,128.76122764,194.27,194.26,1e-08]
[1755260394361,15.10621557,194.26,194.16,0.46]
[1755260394532,15.10621557,194.24,194.16,0.46]
[1755260394732,15.10621557,194.22,194.16,0.46]
[1755260395034,15.10621557,194.17,194.14,0.46]
[1755260395342,36.3,194.16,194.14,0.46]
[1755260395729,36.3,194.16,194.12,26.46]
[1755260395931,36.3,194.16,194.13,0.46]
[1755260396126,36.3,194.16,194.12,26.0]
[1755260396127,36.3,194.16,194.14,0.46]
[1755260396331,41.45046326,194.16,194.12,26.0]
[1755260396552,49.734928,194.16,194.06,3.68904583]
[1755260396853,15.10621557,194.15,194.12,0.46]
[1755260397050,36.3,194.14,194.09,8.74446474]
[1755260397247,44.58446474,194.14,194.1,0.46]
[1755260397452,44.58446474,194.14,194.08,8.28446474]
[1755260397753,36.3,194.14,194.09,0.46]
[1755260397951,36.3,194.14,194.1,0.46]
[1755260398163,36.3,194.14,194.11,0.46]
[1755260398455,8.28446474,194.12,194.07,8.28446474]
[1755260398643,36.3,194.11,194.08,0.46]
[1755260399172,36.3,194.11,194.06,27.0]